Cogmind - Beta 14 @@@ ROGUE MODE // 2024.08.22 @ 02:03:26 Player: Zeia Result: Destroyed by X-87 Electro with Compact HERF Cannon Performance ------------- Evolutions (6) 3000 Regions Visited (16) 3200 Robots Destroyed (116) 580 Value Destroyed (5501) 5501 Prototype IDs (32) 640 Alien Tech Used (1) 200 Bonus (4825) 4825 TOTAL SCORE: 17946 Bonus ------- High Alert Combat Kills 66 Follower Combat Kills 2961 Registered with UFD 300 MAIN.C Attacked Warlord 500 Warlord Defense Kills 502 Built Enhanced Grunts 300 A7 Reached Mainframe 300 Met R17 at Cetus 500 Friendly Fire -604 Cogmind --------- Core Integrity 0/1150 Matter 150/300 Energy 100/100 System Corruption 6% Temperature Cool (0) Movement Core (800) Ox15 Location -4/Warlord Parts ------- > --- POWER (2) -------- (None) > --- PROPULSION (4) --- (None) > --- UTILITY (12) ----- Advanced Heat Sink High-capacity Storage Unit Advanced Signal Interpreter Gun Armor Graphene Brace Hacking Suite Makeshift Hacking Suite > --- WEAPON (2) ------- (None) > --- INVENTORY (20) --- Scrap Suit High-capacity Matter Pod (200) Makeshift Sensor Array Makeshift Sensor Array Energy Filter Quantum Capacitor Advanced Transmission Jammer Improved Hacking Suite Vortex Rail Vortex Rail Phasing Sabre Vortex Trap DRS Beacon (Ready) Peak State ------------ > --- POWER ------------ Neutrino Core Particle Reactor > --- PROPULSION ------- Centrium Heavy Treads Centrium Heavy Treads > --- UTILITY ---------- Scrap Suit Advanced Heat Sink Advanced Coolant Injector High-capacity Storage Unit Precision Matter Filter Advanced Transmission Jammer Gun Armor Centrium Medium Armor Plating Centrium Medium Armor Plating Hacking Suite Makeshift Hacking Suite > --- WEAPON ----------- Advanced KE Penetrator Advanced KE Penetrator Advanced KE Penetrator Advanced KE Penetrator > --- INVENTORY -------- Reinforced Deuterium Engine Advanced Medium Treads Advanced Medium Treads Scrap Suit High-capacity Matter Pod Deep Structural Scanner Energy Filter Quantum Capacitor Centrium Medium Armor Plating Centrium Medium Armor Plating Graphene Brace Hacking Suite Mass Driver Mini Smartbomb Launcher Power Sword Vortex Trap Vortex Trap DRS Beacon [Rating: 161] Favorites ----------- Power Particle Reactor Engine Subdweller Power Source Power Core Neutrino Core Reactor Particle Reactor Propulsion Centrium Heavy Treads Treads Centrium Heavy Treads Leg Flexi-carbon Leg Wheel Overtuned Huge Scrapsphere Hover Unit Hover Unit Utility Centrium Medium Armor Plating Device Scrap Suit Storage High-capacity Storage Unit Processor Advanced Signal Interpreter Hackware Makeshift Hacking Suite Protection Centrium Medium Armor Plating Weapon Advanced KE Penetrator Energy Gun Improved Medium Laser Energy Cannon Heavy Plasma Cannon Ballistic Gun Advanced KE Penetrator Ballistic Cannon Hardcell Cannon Launcher Subdweller Shrapnel Launcher Slashing Weapon Mining Claw Build | -11 -10 -10 -8 -8 -6 -6 -6 -5 -5 -5 -5 -5 -4 -4 -4 -4 ------- Run | Yrd Mat Sub Rec Scr Fac Low Low Fac Ext Cet Arc Hub Fac Upp Upp War Slots Evolved 12 | . . . . . 8 . . 2 . . . . 2 . . . Power 1 | . . . . . . . . 1 . . . . . . . . Propulsion 2 | . . . . . 2 . . . . . . . . . . . Utility 9 | . . . . . 6 . . 1 . . . . 2 . . . Weapon . | . . . . . . . . . . . . . . . . . Parts Attached 209 | 7 7 38 1 18 20 7 1 10 20 21 4 2 17 16 7 13 Power 23 | 1 1 2 . 1 1 . . 1 5 1 2 . 1 . 3 4 Engine 8 | 1 1 2 . . . . . 1 2 . . . . . . 1 Core 9 | . . . . 1 . . . . 3 1 . . 1 . 1 2 Reactor 6 | . . . . . 1 . . . . . 2 . . . 2 1 Propulsion 33 | 2 1 5 . 9 2 . . . . 6 . . . 6 1 1 Treads 19 | 2 1 4 . 3 . . . . . 4 . . . 4 1 . Leg 4 | . . . . 2 . . . . . . . . . 2 . . Wheel 9 | . . . . 4 2 . . . . 2 . . . . . 1 Hover 1 | . . 1 . . . . . . . . . . . . . . Flight . | . . . . . . . . . . . . . . . . . Utility 84 | 2 2 5 . 6 14 5 1 7 8 7 2 . 12 8 1 4 Device 46 | 1 . 2 . 2 9 3 1 4 4 1 2 . 6 7 1 3 Storage 8 | 1 1 2 . 3 1 . . . . . . . . . . . Processor 3 | . . . . 1 . . . . . . . . 1 . . 1 Hackware 5 | . . . . . 1 . . 2 1 . . . 1 . . . Protection 22 | . 1 1 . . 3 2 . 1 3 6 . . 4 1 . . Artifact . | . . . . . . . . . . . . . . . . . Weapon 69 | 2 3 26 1 2 3 2 . 2 7 7 . 2 4 2 2 4 Energy Gun 13 | 2 2 7 . 1 . . . . . 1 . . . . . . Energy Cannon 5 | . . . . 1 1 1 . . 2 . . . . . . . Ballistic Gun 14 | . 1 4 . . 1 . . . . 4 . 1 3 . . . Ballistic Cannon 16 | . . 6 . . 1 . . 1 2 2 . . . 1 2 1 Launcher 14 | . . 5 . . . 1 . 1 3 . . 1 1 1 . 1 Special Weapon . | . . . . . . . . . . . . . . . . . Impact Weapon . | . . . . . . . . . . . . . . . . . Slashing Weapon 7 | . . 4 1 . . . . . . . . . . . . 2 Piercing Weapon . | . . . . . . . . . . . . . . . . . Special Melee Weapon . | . . . . . . . . . . . . . . . . . Unidentified Prototypes 11 | . 1 . . . 1 1 . 1 . 4 . 1 1 . . 1 Corrupted Parts 1 | . . . . . . . . . . 1 . . . . . . System Corruption 2 | . . . . . . . . . . 2 . . . . . . Parts Lost 46 | . 1 11 . . 2 1 . 2 . . . . . 7 5 17 Power 8 | . . 2 . . . . . . . . . . . . 2 4 Propulsion 11 | . . 4 . . . . . . . . . . . 2 . 5 Utility 16 | . 1 2 . . 2 1 . 2 . . . . . 3 1 4 Weapon 11 | . . 3 . . . . . . . . . . . 2 2 4 Highest Loss Streak 9 | . 1 3 . . 2 1 . 2 . . . . . 2 4 9 To Critical Strikes . | . . . . . . . . . . . . . . . . . Average Slot Usage (%) 89 | . 99 93 100 89 72 78 81 81 82 79 81 83 85 86 94 90 Engine 4 | . 14 12 14 2 . . . 5 5 4 . . . . . . Core 4 | . . . . 10 4 . . . 4 5 4 . 2 4 2 . Reactor 2 | . . . . . 1 6 6 5 . . 5 11 6 4 6 9 Treads 12 | . 28 24 14 11 . . . . . 2 11 11 9 8 11 13 Leg 2 | . . . . 4 . . . . . . . . . 1 7 4 Wheel 3 | . . . . 8 13 12 12 11 11 8 . . . . . . Device 11 | . 1 3 . 1 20 22 25 20 22 23 20 22 21 18 20 23 Storage 9 | . 14 14 14 12 5 6 6 5 5 5 5 5 4 4 4 5 Processor 1 | . . . . . . . . . . . . . . 4 4 5 Hackware 4 | . . . . . 3 6 6 10 10 11 11 11 9 9 9 10 Protection 9 | . 12 9 14 6 7 10 12 11 11 7 11 11 12 13 12 9 Energy Gun 3 | . 17 7 . 5 2 . . . . . . . . . . . Energy Cannon 2 | . . . . 5 3 6 6 5 4 . . . . . . . Ballistic Gun 4 | . 10 6 . . 4 . . . . 5 11 10 17 9 2 . Ballistic Cannon 2 | . . 4 1 . 1 6 6 4 4 3 . . . 3 6 4 Launcher 4 | . . 4 14 8 . . . . . . . . . 2 2 . Slashing Weapon 4 | . . 5 12 8 . . . . . . . . . . . 3 Peak Build Rating 161 | 7 13 19 17 33 79 83 83 95 97 123 127 128 161 157 139 128 Average Rating 69 | 5 11 14 16 24 71 79 82 91 94 104 122 127 158 148 132 116 On Entrance 76 | . 7 11 17 17 33 79 83 82 86 94 123 127 128 159 136 124 Naked Turns . | . . . . . . . . . . . . . . . . . Heaviest Build 236 | 15 34 40 40 221 236 82 82 96 112 107 115 115 132 130 126 105 Greatest Support 160 | 40 40 40 20 40 40 40 40 40 40 160 160 160 160 160 88 88 Greatest Overweight (x) 25 | . . 1 1 18 5 2 2 2 2 5 . . . 5 2 25 Average Overweight (x) 1 | . . . 1 2 1 1 2 2 2 1 . . . . 1 1 Largest Inventory Capacity 35 | 8 15 20 15 35 35 20 20 20 20 20 20 20 20 20 20 20 Average Capacity 19 | 7 11 15 15 24 21 20 20 20 20 20 20 20 20 20 20 20 Most Carried 35 | 6 10 15 15 35 35 20 20 20 20 20 20 20 20 20 20 20 Average Carried 17 | 4 9 13 14 18 19 19 20 19 19 19 20 20 19 17 18 19 Final Capacity 35 | 8 15 15 15 35 20 20 20 20 20 20 20 20 20 20 20 20 Final Carried 35 | 6 10 13 15 35 20 20 20 19 20 20 20 20 20 16 20 15 Class Distribution -------------------- 33% | Mutant 22% | Scavenger-Tank 13% | Hauler-Mutant 12% | Scavenger-Mutant 5% | Derelict-Mutant 4% | Scrapper Dominant Class ---------------- Mutant | -10/Materials Mutant | -10/Subcaves Mutant | -8/Recycling Hauler-Mutant | -8/Scraptown Scrapper | -6/Factory Scrapper | -6/Lower Caves Scrapper | -6/Lower Caves Hacker-Scrapper | -5/Factory Scavenger-Scrapper | -5/Extension Commander-Scrapper | -5/Cetus Scavenger-Mutant | -5/Archives Scavenger-Mutant | -5/Hub_04(d) Scavenger-Tank | -4/Factory Scavenger-Tank | -4/Upper Caves Scavenger-Tank | -4/Upper Caves Scavenger-Mutant | -4/Warlord Resources | -11 -10 -10 -8 -8 -6 -6 -6 -5 -5 -5 -5 -5 -4 -4 -4 -4 ----------- Run | Yrd Mat Sub Rec Scr Fac Low Low Fac Ext Cet Arc Hub Fac Upp Upp War Matter Collected 6190 | 212 112 747 90 110 403 159 103 138 485 1182 132 76 721 694 757 69 Remotely 2 | . . . . . . 2 . . . . . . . . . . Salvage Created 5015 | 24 195 616 . . 144 55 . 296 249 . 82 525 1442 559 680 148 Parts 242 | 5 7 46 . . 7 7 . 7 14 . 3 25 73 14 28 6 Haulers Intercepted . | . . . . . . . . . . . . . . . . . Recyclers Shooed 1 | . . . . . . . . 1 . . . . . . . . Parts Field Recycled . | . . . . . . . . . . . . . . . . . Retrieved Matter . | . . . . . . . . . . . . . . . . . Parts Self-Destructed 60 | . . 16 . . . 4 . . . . . . . 19 21 . Prevented 4 | . . 4 . . . . . . . . . . . . . . Kills | -11 -10 -10 -8 -8 -6 -6 -6 -5 -5 -5 -5 -5 -4 -4 -4 -4 ------- Run | Yrd Mat Sub Rec Scr Fac Low Low Fac Ext Cet Arc Hub Fac Upp Upp War Combat Hostiles Destroyed 101 | . 4 16 . . 2 6 . 8 8 . 1 5 21 11 16 3 Guns 44 | . 4 7 . . . . . . . . 1 5 20 5 2 . Cannons 20 | . . 2 . . 1 2 . 3 3 . . . . 2 7 . AOE 33 | . . 6 . . . 3 . 4 5 . . . 1 4 7 3 Classes Destroyed 20 | 1 1 2 . . 1 1 . 1 1 . 1 4 2 3 1 1 Worker 4 | . . . . . . . . . . . . 2 2 . . . Builder 3 | . . . . . 1 . . . 1 . . . 1 . . . Tunneler 1 | 1 . . . . . . . . . . . . . . . . Recycler 1 | . . . . . . . . . . . . 1 . . . . Mechanic 1 | . . . . . . . . . . . . . 1 . . . Watcher 2 | . . . . . . . . . 1 . . . 1 . . . Swarmer 21 | . . 4 . . . 4 . . 4 . . . 1 2 5 1 Cutter 2 | . . . . . . . . . . . . 2 . . . . Grunt 23 | . 4 . . . 2 . . 7 3 . . 1 5 1 . . Brawler 3 | . . . . . . . . . . . . . 1 2 . . Duelist 3 | . . . . . . . . . . . . . . 3 . . Sentry 7 | . . . . . . . . . . . 1 1 3 1 1 . Hunter 10 | . . . . . . . . . . . . 1 3 1 4 1 Programmer 12 | . . . . . . . . 1 1 . . . 8 . 2 . Behemoth 1 | . . . . . . . . . . . . . . 1 . . Enhanced Grunt 1 | . . . . . . . . . . . . 1 . . . . Executioner 1 | . . . . . . . . . . . . . . . . 1 Subdweller 12 | . . 12 . . . . . . . . . . . . . . Samaritan 3 | . . . . . . . . . . . . . . . 3 . Thief 2 | . . . . . . 2 . . . . . . . . . . Thug 5 | . . . . . . . . . . . . . . 1 4 . Mutant 1 | . . . . . . . . . . . . . . 1 . . Best Kill Streak 6 | 1 2 4 . . 3 4 . 5 6 . 1 2 4 4 6 3 Combat Bots Only 6 | . 2 4 . . 2 4 . 5 5 . 1 2 3 4 6 3 Max Kills in Single Turn 3 | 1 1 3 . . 1 3 . 2 3 . 1 2 2 2 2 2 Gunslinging 1 | . . . . . . . . . . . . . 1 . . . Exploded 3 | . . 3 . . . 3 . 2 2 . . . 1 2 2 2 Melee . | . . . . . . . . . . . . . . . . . Uniques/NPCs Destroyed . | . . . . . . . . . . . . . . . . . Combat | -11 -10 -10 -8 -8 -6 -6 -6 -5 -5 -5 -5 -5 -4 -4 -4 -4 -------- Run | Yrd Mat Sub Rec Scr Fac Low Low Fac Ext Cet Arc Hub Fac Upp Upp War Hostile Shots Fired 824 | . 18 106 . . 24 23 . 36 37 1 . 21 120 169 98 171 Missed 222 | . 5 32 . . 4 6 . 15 8 1 . 7 22 48 29 45 Damage Taken 13784 | . 188 1672 . . 384 310 . 734 566 . 22 442 2489 2556 1178 3243 Core 1592 | . . 168 . . 19 34 . 98 122 . . . 118 69 131 833 Absorbed by Shields . | . . . . . . . . . . . . . . . . . Reduced by Siege Mode 292 | . . . . . . . . . . . . 12 154 126 . . Regen/Repaired (Parts) 809 | . . . . 338 . . . 4 12 . . . 22 . . 433 Core Remaining (%) 75 | 100 . . . 32 . . 93 . . . . 78 . . . . Volleys Fired 348 | 1 17 97 . . 18 20 . 24 23 . 1 14 51 43 34 5 Largest 4 | 2 2 2 . . 2 2 . 2 2 . 2 2 4 4 3 1 Hottest 166 | 100 112 112 . . 138 138 . 138 138 . 70 70 140 140 166 80 Shots Fired 725 | 2 25 158 . . 34 40 . 43 37 1 2 28 184 98 68 5 Gun 430 | 2 25 104 . . 15 . . . . 1 2 28 181 57 15 . Cannon 255 | . . 43 . . 19 39 . 39 34 . . . . 35 45 1 Launcher 40 | . . 11 . . . 1 . 4 3 . . . 3 6 8 4 Special . | . . . . . . . . . . . . . . . . . Kinetic 538 | . 9 94 . . 16 20 . 19 15 1 2 28 181 92 60 1 Thermal 152 | 2 16 58 . . 18 19 . 20 19 . . . . . . . Explosive 29 | . . . . . . 1 . 4 3 . . . 3 6 8 4 Electromagnetic 6 | . . 6 . . . . . . . . . . . . . . Robot Hit Streak 33 | 1 8 29 . . 6 3 . 5 7 . 1 6 19 33 11 11 Robot Miss Streak 4 | 1 2 2 . . 3 2 . 2 3 3 4 2 4 2 4 . Penetration Max 1 | . . . . . . . . . . . . 1 1 1 1 . Secondary Targets 3 | . . 1 . . . . . . . . . . 2 . . . Max Gunslinging Chain 1 | . . 1 . . . . . . . . . . 1 . . . Shots Hit Robots 453 | 1 19 106 . . 17 16 . 25 14 . 1 18 119 72 41 4 Core Hits 225 | 1 8 29 . . 4 6 . 23 15 . 1 14 50 43 27 4 Critical Kills 25 | . . 1 . . 1 1 . 1 . . 1 4 10 1 5 . Critical Parts Destroyed 30 | . . . . . 1 . . . . . . 2 20 2 5 . Critical Strikes 68 | . 1 8 . . 2 1 . 1 1 . 1 6 31 5 11 . Burn 7 | . 1 6 . . . . . . . . . . . . . . Meltdown 3 | . . . . . 1 1 . 1 . . . . . . . . Destroy 55 | . . 1 . . 1 . . . . . 1 6 31 5 10 . Blast 3 | . . 1 . . . . . . 1 . . . . . 1 . Melee Attacks 70 | . . 32 31 . . . . . . . . . . . . 7 Impact . | . . . . . . . . . . . . . . . . . Slashing 70 | . . 32 31 . . . . . . . . . . . . 7 Piercing . | . . . . . . . . . . . . . . . . . Sneak Attacks . | . . . . . . . . . . . . . . . . . Combat Hostiles . | . . . . . . . . . . . . . . . . . Follow-up Attacks . | . . . . . . . . . . . . . . . . . Damage Inflicted 16541 | 12 253 2151 . . 437 714 . 1406 899 29 30 898 3978 3305 2093 336 Guns 7608 | 12 253 1390 . . 146 . . . . 29 30 690 3711 1135 212 . Cannons 3952 | . . 226 . . 291 525 . 688 445 . . . . 1012 765 . Explosions 4708 | . . 535 . . . 189 . 718 454 . . . 202 1158 1116 336 Melee . | . . . . . . . . . . . . . . . . . Ramming 273 | . . . . . . . . . . . . 208 65 . . . Kinetic 9705 | . 50 1145 . . 146 240 . 289 251 29 30 690 3711 2147 977 . Thermal 2223 | 12 203 839 . . 291 285 . 399 194 . . . . . . . Explosive 4173 | . . . . . . 189 . 718 454 . . . 202 1158 1116 336 Electromagnetic 167 | . . 167 . . . . . . . . . . . . . . Impact . | . . . . . . . . . . . . . . . . . Slashing . | . . . . . . . . . . . . . . . . . Piercing . | . . . . . . . . . . . . . . . . . Highest Corruption 8 | . . . . . . . . 2 2 4 4 . 5 6 8 8 Average Corruption 4 | . . . . . . . . 1 2 2 3 . 3 5 6 7 Corruption Purged 4 | . . . . . . . . . . . 4 . . . . . Corruption Blocked . | . . . . . . . . . . . . . . . . . Effects 196 | . . . . . . . . 1 8 12 7 . 20 54 87 7 Message Errors 41 | . . . . . . . . . 2 3 1 . 2 8 23 2 Matter Fused 49 | . . . . . . . . 1 4 3 1 . 6 11 22 1 Heat Flow Errors 23 | . . . . . . . . . 1 . . . 2 8 11 1 Energy Discharges 20 | . . . . . . . . . . . . . 1 10 6 3 Parts Rejected 3 | . . . . . . . . . . 1 1 . . 1 . . Parts Fused 5 | . . . . . . . . . . . . . . 2 3 . Data Loss (minor) 26 | . . . . . . . . . 1 2 3 . 6 3 11 . Data Loss (major) 6 | . . . . . . . . . . 2 . . . 3 1 . Misfires 13 | . . . . . . . . . . 1 . . 2 5 5 . Alerts 4 | . . . . . . . . . . . 1 . . . 3 . Weapon Failures 6 | . . . . . . . . . . . . . 1 3 2 . Overload Shots . | . . . . . . . . . . . . . . . . . Overflow Damage 232 | . . . . . 4 42 . 22 5 . . 6 3 26 69 55 Projectiles 125 | . . . . . 4 42 . 2 . . . . . 21 56 . Explosions 98 | . . . . . . . . 20 5 . . . . 5 13 55 Melee 9 | . . . . . . . . . . . . 6 3 . . . Knockbacks 20 | . . 2 . . . . . 2 2 . . 2 2 6 4 . Impact 4 | . . . . . . . . . . . . 2 2 . . . Kinetic 16 | . . 2 . . . . . 2 2 . . . . 6 4 . Secondary . | . . . . . . . . . . . . . . . . . Self-Inflicted Damage 144 | . . 93 . . . . . . . . . . 51 . . . Shots 6 | . . 3 . . . . . . . . . . 3 . . . Rammed 16 | . . . . . . . . . . . . 12 4 . . . Targets Rammed 16 | . . . . . . . . . . . . 12 4 . . . Kicked . | . . . . . . . . . . . . . . . . . Crushed . | . . . . . . . . . . . . . . . . . Highest Temperature 278 | 39 278 69 . . 85 . . 117 180 . . 7 252 239 197 126 Average Temperature 67 | 20 144 35 . . 37 . . 49 69 . . 5 58 73 62 89 Received Heat Transfer 1922 | . 126 399 . . 195 . . 141 120 . . 54 296 357 45 189 Effects 2 | . 1 . . . . . . . . . . . 1 . . . Energy Bleed 1 | . 1 . . . . . . . . . . . . . . . Interference 1 | . . . . . . . . . . . . . 1 . . . Siege Activations 19 | . . . . . . . . . . . 1 4 10 4 . . Total Turns 334 | . . . . . . . . . . . 3 47 179 105 . . Longest Duration 50 | . . . . . . . . . . . 3 22 47 50 . . Robots Corrupted 1 | . . . . . . . . . . . . . 1 . . . Combat Hostiles . | . . . . . . . . . . . . . . . . . Parts Fried 3 | . . . . . . . . . . . . . 3 . . . Impact Corruptions 2 | . . . . . . . . . . . . 1 1 . . . Robots Melted 4 | . . 1 . . 1 1 . 1 . . . . . . . . Combat Hostiles 4 | . . 1 . . 1 1 . 1 . . . . . . . . Parts Melted 10 | . 2 3 . . 2 1 . . . . . . . . 2 . Heat Transferred 4625 | 37 518 2270 . . 450 450 . 600 300 . . . . . . . Parts Sabotaged . | . . . . . . . . . . . . . . . . . Parts Stolen . | . . . . . . . . . . . . . . . . . Parts Stripped . | . . . . . . . . . . . . . . . . . Power Chain Reactions 3 | . . 3 . . . . . . . . . . . . . . Alert | -11 -10 -10 -8 -8 -6 -6 -6 -5 -5 -5 -5 -5 -4 -4 -4 -4 ------- Run | Yrd Mat Sub Rec Scr Fac Low Low Fac Ext Cet Arc Hub Fac Upp Upp War Peak Influence 685 | 5 109 . 5 . 136 . . 207 685 341 246 343 531 . . . Initial 299 | . 3 . . . . . . . 7 299 127 16 18 . . . Average 153 | 1 26 . 1 . 31 . . 36 355 289 192 234 171 . . . Maximum Alert Level 2 | . . . . . . . . 1 2 1 1 1 2 . . . Low Security (%) 65 | 100 100 . 100 . 100 . . 99 27 20 28 36 67 . . . Level 1 28 | . . . . . . . . . 26 80 71 63 28 . . . Level 2 6 | . . . . . . . . . 46 . . . 3 . . . Level 3 . | . . . . . . . . . . . . . . . . . Level 4 . | . . . . . . . . . . . . . . . . . Level 5 . | . . . . . . . . . . . . . . . . . High Security . | . . . . . . . . . . . . . . . . . Max Security . | . . . . . . . . . . . . . . . . . Squads Dispatched 23 | . 3 . . . 3 . . 1 4 . . 4 8 . . . Investigation 7 | . 1 . . . 1 . . 1 2 . . . 2 . . . Extermination 5 | . . . . . 1 . . . . . . . 4 . . . Reinforcement 11 | . 2 . . . 1 . . . 2 . . 4 2 . . . Assault . | . . . . . . . . . . . . . . . . . Garrison . | . . . . . . . . . . . . . . . . . Intercept . | . . . . . . . . . . . . . . . . . Searches Triggered . | . . . . . . . . . . . . . . . . . Construction Impeded 2 | . . . . . . . . . 1 . . . 1 . . . Haulers Reinforced . | . . . . . . . . . . . . . . . . . Active Scanning Responses . | . . . . . . . . . . . . . . . . . Cargo Convoy Interrupts . | . . . . . . . . . . . . . . . . . Stealth | -11 -10 -10 -8 -8 -6 -6 -6 -5 -5 -5 -5 -5 -4 -4 -4 -4 --------- Run | Yrd Mat Sub Rec Scr Fac Low Low Fac Ext Cet Arc Hub Fac Upp Upp War Distress Signals 9 | . 1 . . . 1 . . . 1 2 . 2 . . . 2 Communications Jammed 40 | . . . . . . . . 4 2 . . . 34 . . . Distress Signals 38 | . . . . . . . . 4 2 . . . 32 . . . Times Spotted 190 | . 8 23 . . 9 5 . 11 24 10 4 14 32 22 15 13 Peak Tracking Total 9 | . 3 6 . . 5 4 . 6 5 5 2 3 4 7 4 9 Tactical Retreats 4 | . . 3 . . 1 . . . . . . . . . . . Traps | -11 -10 -10 -8 -8 -6 -6 -6 -5 -5 -5 -5 -5 -4 -4 -4 -4 ------- Run | Yrd Mat Sub Rec Scr Fac Low Low Fac Ext Cet Arc Hub Fac Upp Upp War Traps Triggered 7 | . . 2 . . . . . . 2 . . . 3 . . . Indirectly . | . . . . . . . . . . . . . . . . . Trap Hack Attempts . | . . . . . . . . . . . . . . . . . Triggered . | . . . . . . . . . . . . . . . . . Disarmed . | . . . . . . . . . . . . . . . . . Reprogrammed . | . . . . . . . . . . . . . . . . . Reused 1 | . . . . . . . . . . . . . . 1 . . Traps Extracted . | . . . . . . . . . . . . . . . . . Installed 1 | . . . . . . . . . . . . . . 1 . . Triggered 23 | . . . . . . . 1 . . . . . . 1 . 21 Most Traps Carried 2 | . . . . 2 2 2 2 2 2 2 2 2 2 2 1 1 Machines | -11 -10 -10 -8 -8 -6 -6 -6 -5 -5 -5 -5 -5 -4 -4 -4 -4 ---------- Run | Yrd Mat Sub Rec Scr Fac Low Low Fac Ext Cet Arc Hub Fac Upp Upp War Machines Disabled 18 | . . 1 . . . 2 . . 1 . 3 3 5 2 1 . Max in Single Turn 1 | . . 1 . . . 1 . . . . . 1 1 1 1 . Garrison Access 2 | . . . . . . . . . . . . 1 1 . . . Machines Repaired . | . . . . . . . . . . . . . . . . . Machines Dismantled . | . . . . . . . . . . . . . . . . . Machines Sabotaged . | . . . . . . . . . . . . . . . . . Overloaded Fab Kills . | . . . . . . . . . . . . . . . . . Hacking | -11 -10 -10 -8 -8 -6 -6 -6 -5 -5 -5 -5 -5 -4 -4 -4 -4 --------- Run | Yrd Mat Sub Rec Scr Fac Low Low Fac Ext Cet Arc Hub Fac Upp Upp War Machines Accessed 58 | . 2 4 3 4 3 2 1 2 14 3 1 6 7 . 4 2 Terminals 32 | . 2 . 2 . 2 . . 1 12 3 . 5 4 . 1 . Fabricators . | . . . . . . . . . . . . . . . . . Repair Stations . | . . . . . . . . . . . . . . . . . Recycling Units 7 | . . . 1 . 1 . . 1 2 . . . 2 . . . Scanalyzers . | . . . . . . . . . . . . . . . . . Garrison Access 2 | . . . . . . . . . . . . 1 1 . . . Total Hacks 145 | . 6 7 5 28 4 8 1 6 25 8 2 18 15 . 9 3 Successful 101 | . 4 7 1 28 4 8 1 2 12 5 2 5 10 . 9 3 Failed 44 | . 2 . 4 . . . . 4 13 3 . 13 5 . . . Catastrophic 15 | . 1 . 1 . . . . . 5 . . 6 2 . . . Database Lockouts . | . . . . . . . . . . . . . . . . . Manual 43 | . 2 . 4 . 1 . . 2 11 1 . 14 8 . . . Terminals 76 | . 6 . 4 . 3 . . 4 23 8 . 15 12 . 1 . Fabricators . | . . . . . . . . . . . . . . . . . Repair Stations . | . . . . . . . . . . . . . . . . . Recycling Units 8 | . . . 1 . 1 . . 2 2 . . . 2 . . . Scanalyzers . | . . . . . . . . . . . . . . . . . Garrison Access 4 | . . . . . . . . . . . . 3 1 . . . Terminal Hacks 91 | . 3 7 . 28 3 8 1 1 10 5 2 4 7 . 9 3 Record 56 | . . 5 . 27 . 7 . . . 4 2 . 2 . 7 2 Prototype ID Bank 3 | . 2 . . . . . . . 1 . . . . . . . Open Door 15 | . . 1 . . . 1 1 . 8 1 . . . . 2 1 Recycling Unit Index 1 | . . . . . . . . . . . . . 1 . . . Alert Level 1 | . . . . . . . . . . . . . 1 . . . Unreport Threat 6 | . . . . . . . . 1 . . . 3 2 . . . Locate Traps 1 | . . . . . 1 . . . . . . . . . . . Recall Investigation 1 | . . . . . . . . . 1 . . . . . . . Hauler Manifests 1 | . 1 . . . . . . . . . . . . . . . Zone Layout 4 | . . . . . 2 . . . . . . 1 1 . . . Derelict Proto ID Bank 2 | . . 1 . 1 . . . . . . . . . . . . Fabricator Hacks . | . . . . . . . . . . . . . . . . . Repair Station Hacks . | . . . . . . . . . . . . . . . . . Recycling Unit Hacks 1 | . . . 1 . . . . . . . . . . . . . Report Inventory 1 | . . . 1 . . . . . . . . . . . . . Scanalyzer . | . . . . . . . . . . . . . . . . . Garrison Access Hacks 2 | . . . . . . . . . . . . 1 1 . . . Seal Access 2 | . . . . . . . . . . . . 1 1 . . . Unauthorized Hacks 7 | . 1 . . . 1 . . 1 2 . . . 2 . . . Terminals 1 | . 1 . . . . . . . . . . . . . . . Assimilate 1 | . 1 . . . . . . . . . . . . . . . Fabricators . | . . . . . . . . . . . . . . . . . Repair Stations 6 | . . . . . 1 . . 1 2 . . . 2 . . . Recycling Units . | . . . . . . . . . . . . . . . . . Fedlink 2 | . . . . . . . . 1 . . . . 1 . . . Scrapoids 4 | . . . . . 1 . . . 2 . . . 1 . . . Scanalyzers . | . . . . . . . . . . . . . . . . . Garrison Access . | . . . . . . . . . . . . . . . . . Data Cores Recovered 1 | . . . . . . . . . 1 . . . . . . . Used . | . . . . . . . . . . . . . . . . . Hacking Detections 28 | . 2 . 2 . 1 . . 2 8 4 . 5 4 . . . Full Trace Events 1 | . 1 . . . . . . . . . . . . . . . Feedback Events . | . . . . . . . . . . . . . . . . . Feedback Blocked . | . . . . . . . . . . . . . . . . . Robot Schematics Acquired . | . . . . . . . . . . . . . . . . . Robots Built . | . . . . . . . . . . . . . . . . . Authchips . | . . . . . . . . . . . . . . . . . Time . | . . . . . . . . . . . . . . . . . Total Robot Build Rating . | . . . . . . . . . . . . . . . . . Part Schematics Acquired . | . . . . . . . . . . . . . . . . . Parts Built . | . . . . . . . . . . . . . . . . . Authchips . | . . . . . . . . . . . . . . . . . Time . | . . . . . . . . . . . . . . . . . Total Part Build Rating . | . . . . . . . . . . . . . . . . . Parts Repaired . | . . . . . . . . . . . . . . . . . Time . | . . . . . . . . . . . . . . . . . Parts Recycled . | . . . . . . . . . . . . . . . . . Recycled Matter . | . . . . . . . . . . . . . . . . . Retrieved Matter . | . . . . . . . . . . . . . . . . . Retrieved Components . | . . . . . . . . . . . . . . . . . Parts Scanalyzed . | . . . . . . . . . . . . . . . . . Part Schematics Acquired . | . . . . . . . . . . . . . . . . . Parts Damaged . | . . . . . . . . . . . . . . . . . Bothacking | -11 -10 -10 -8 -8 -6 -6 -6 -5 -5 -5 -5 -5 -4 -4 -4 -4 ------------ Run | Yrd Mat Sub Rec Scr Fac Low Low Fac Ext Cet Arc Hub Fac Upp Upp War Used RIF Installer . | . . . . . . . . . . . . . . . . . Robots Hacked . | . . . . . . . . . . . . . . . . . Non-combat . | . . . . . . . . . . . . . . . . . Combat . | . . . . . . . . . . . . . . . . . Robot Hacks Applied . | . . . . . . . . . . . . . . . . . Relay Couplers Released 3 | . . . . . 3 . . . . . . . . . . . Machine Destruction 3 | . . . . . 3 . . . . . . . . . . . Fabnet Peak Effective % . | . . . . . . . . . . . . . . . . . Robots Rewired 16 | . . . . . . . . . 11 . . . . 5 . . Allies Hacked . | . . . . . . . . . . . . . . . . . Hacks Repelled . | . . . . . . . . . . . . . . . . . Allies | -11 -10 -10 -8 -8 -6 -6 -6 -5 -5 -5 -5 -5 -4 -4 -4 -4 -------- Run | Yrd Mat Sub Rec Scr Fac Low Low Fac Ext Cet Arc Hub Fac Upp Upp War Total Allies 60 | . . . . . 5 2 . . 33 10 . . 5 5 . . Largest Group 23 | . . . . . 5 2 . . 20 23 17 11 5 5 . . Highest-Rated Group 1223 | . . . . . 143 40 . . 739 1223 1012 662 235 216 . . Highest-Rated Ally 159 | . . . . . 31 20 . . 159 159 159 96 47 48 . . Total Orders 1 | . . . . . . . . . . 1 . . . . . . STAY 1 | . . . . . . . . . . 1 . . . . . . Ally Attacks 580 | . . . . . 38 . . . 136 120 57 80 78 71 . . Total Damage 13244 | . . . . . 571 . . . 3287 3059 1225 2018 1242 1842 . . Kills 65 | . . . . . 5 . . . 17 11 3 13 7 9 . . Allies Corrupted . | . . . . . . . . . . . . . . . . . Allies Melted 1 | . . . . . . . . . . . . . . . . 1 Intel | -11 -10 -10 -8 -8 -6 -6 -6 -5 -5 -5 -5 -5 -4 -4 -4 -4 ------- Run | Yrd Mat Sub Rec Scr Fac Low Low Fac Ext Cet Arc Hub Fac Upp Upp War Robot Analysis Total . | . . . . . . . . . . . . . . . . . Derelict Logs Recovered 12 | . . 3 . 3 . 1 1 . . . . . . 2 2 . Drone Launches . | . . . . . . . . . . . . . . . . . Drone Recoveries . | . . . . . . . . . . . . . . . . . Exploration | -11 -10 -10 -8 -8 -6 -6 -6 -5 -5 -5 -5 -5 -4 -4 -4 -4 ------------- Run | Yrd Mat Sub Rec Scr Fac Low Low Fac Ext Cet Arc Hub Fac Upp Upp War Turns Passed 27234 | 135 858 4746 996 7756 429 531 148 497 878 765 530 605 2041 2202 2809 1308 Spaces Moved 12856 | 74 248 2357 337 2902 366 498 162 422 631 449 204 306 1041 1132 1183 544 Core 10 | 2 . . . 6 . . . . . . . . . . . 2 Treads 8843 | 72 248 2357 337 1412 . . . . . 74 204 306 1041 1110 1183 499 Legs 456 | . . . . 434 . . . . . . . . . 22 . . Wheels 3547 | . . . . 1050 366 498 162 422 631 375 . . . . . 43 Hover . | . . . . . . . . . . . . . . . . . Flight . | . . . . . . . . . . . . . . . . . Fastest Speed 50 | 50 160 160 260 90 70 80 90 90 90 90 160 160 160 160 225 150 Average Speed 186 | 157 160 179 260 264 84 87 90 90 90 102 160 160 160 174 227 230 Slowest Speed 1300 | 160 160 260 260 1030 120 90 90 90 90 240 160 160 160 470 305 1300 Overloaded Moves . | . . . . . . . . . . . . . . . . . Propulsion Burnouts . | . . . . . . . . . . . . . . . . . Robots Hopped . | . . . . . . . . . . . . . . . . . Cave-ins Triggered . | . . . . . . . . . . . . . . . . . Exploration Rate (%) 56 | 6 46 88 58 90 9 75 20 10 72 87 96 29 25 93 96 59 Regions Visited 16 Branch Regions 12 Pre-discovered Areas 11 | . . 3 . 5 . . . . . . . . . 1 2 . Known Exits Taken 8 | . . . . 1 1 1 1 . . . . 1 1 1 1 . Unknown Exits Taken 8 | 1 1 1 1 . . . . 1 1 1 1 . . . . . Scrap Searched 19 | . . 3 . 5 . 3 2 . . . . . . 3 3 . Spaces Dug 52 | . . 16 9 . 5 6 . 6 3 . . . 1 . . 6 Terrain Destroyed 463 | . . 55 9 . 9 28 . 25 38 . . 9 85 68 108 29 Melee 15 | . . . 9 . . . . . . . . . . . . 6 Projectile 164 | . . . . . 9 17 . 10 15 . . 9 56 27 21 . AOE 284 | . . 55 . . . 11 . 15 23 . . . 29 41 87 23 Terrain Rammed . | . . . . . . . . . . . . . . . . . Walls Destroyed . | . . . . . . . . . . . . . . . . . Machines Disabled . | . . . . . . . . . . . . . . . . . Actions | -11 -10 -10 -8 -8 -6 -6 -6 -5 -5 -5 -5 -5 -4 -4 -4 -4 --------- Run | Yrd Mat Sub Rec Scr Fac Low Low Fac Ext Cet Arc Hub Fac Upp Upp War Total 15329 | 87 688 2647 396 3001 458 551 164 492 903 760 406 386 1295 1273 1236 586 Wait 1458 | . 403 97 25 . 25 18 . 32 137 258 195 51 161 50 5 1 Move 12840 | 73 247 2356 336 2901 365 497 161 421 630 448 203 305 1040 1131 1182 544 Hop . | . . . . . . . . . . . . . . . . . Pick Up 150 | 6 6 18 2 54 19 4 1 2 6 7 . 1 10 4 6 4 Fast Attach 78 | 7 3 2 . 15 4 3 . 3 7 16 3 . 4 2 3 6 Attach 47 | . . 11 . . 9 1 . 2 1 1 . . 4 9 2 7 Detach 24 | . 1 1 . 7 2 . . . 3 1 1 . 3 2 . 3 Swap 85 | . 4 25 1 3 7 4 1 5 12 4 1 2 9 5 2 . Drop 116 | . 7 8 1 21 9 4 1 3 12 25 2 1 9 2 2 9 Fire 348 | 1 17 97 . . 18 20 . 24 23 . 1 14 51 43 34 5 Melee 70 | . . 32 31 . . . . . . . . . . . . 7 Ram . | . . . . . . . . . . . . . . . . . Kick . | . . . . . . . . . . . . . . . . . Crush 16 | . . . . . . . . . . . . 12 4 . . . Escape Stasis 16 | . . . . . . . . . 16 . . . . . . . Rewire 80 | . . . . . . . . . 56 . . . . 24 . . Trap 1 | . . . . . . . . . . . . . . 1 . . Miscellaneous . | . . . . . . . . . . . . . . . . . Route ------- -11/Scrapyard -10/Materials (discovered 3 exits: [*Mat x2] / *Sub) -10/Subcaves (discovered 3 exits: [*Mat x2] / *Rec) -8/Recycling (discovered 2 exits: *Fac / *Scr) -8/Scraptown (discovered 2 exits: *Fac x2) -6/Factory (discovered 6 exits: Fac x4 / *Low x2) -6/Lower Caves -6/Lower Caves -5/Factory (discovered 3 exits: Fac / Upp / *Ext) -5/Extension (discovered 2 exits: *Fac / *Cet) -5/Cetus (discovered 2 exits: *Fac / *Arc) -5/Archives (discovered 3 exits: *Fac / *Hub x2) -5/Hub_04(d) (discovered 3 exits: *Fac x3) -4/Factory (discovered 3 exits: *Res x2 / *Upp) -4/Upper Caves -4/Upper Caves (discovered 2 exits: *Res / *War) -4/Warlord (discovered 1 exit: *Pro) History --------- Turn | Location | Event 43 | -11/Scrapyard | Discovered new exit (range 14) 136 | -11/Scrapyard | Entered Materials 307 | -10/Materials | Build established: Mutant 320 | -10/Materials | Discovered new exit (range 4) 561 | -10/Materials | Discovered new exit (range 10) 957 | -10/Materials | Discovered new exit (range 4) 994 | -10/Materials | Entered Subcaves 1020 | -10/Subcaves | Learned 2 Materials zone layouts 1036 | -10/Subcaves | Visited Clippyterm 1041 | -10/Subcaves | Learned Factory fabricator intel 1220 | -10/Subcaves | Shifting Twisted Machinery released Battle Rifle 1543 | -10/Subcaves | Discovered new exit (range 5) 1709 | -10/Subcaves | Discovered new exit (range 15) 1874 | -10/Subcaves | Disturbed a concealed Subdweller 1887 | -10/Subcaves | Learned location of Zion (-6) 1887 | -10/Subcaves | Met a Zionite searching for "candidates" 2039 | -10/Subcaves | Learned location of Storage (-8) 2040 | -10/Subcaves | A swath of the cavern ceiling suddenly collapsed 2106 | -10/Subcaves | Shifting Twisted Machinery released Spk. Treads 2121 | -10/Subcaves | Shifting Twisted Machinery released Sub. Power Source 2771 | -10/Subcaves | Lost 3 parts (1p1u1w) 2972 | -10/Subcaves | A swath of the cavern ceiling suddenly collapsed 3600 | -10/Subcaves | Discovered new exit (range 9) 3650 | -10/Subcaves | Core integrity fell below 50% 3699 | -10/Subcaves | Lost 3 parts (1p1n1w) 4293 | -10/Subcaves | Visited 4L-MR0's lab 4319 | -10/Subcaves | Found Gun Armor 4493 | -10/Subcaves | Ambushed by Subdweller buried in earth 5740 | -10/Subcaves | Entered Recycling 6572 | -8/Recycling | Discovered new exit (range 13) 6601 | -8/Recycling | Scanned before Scraplab entrance 6707 | -8/Recycling | Entered Scraplab 6728 | -8/Recycling | Discovered new exit (range 3) 6736 | -8/Recycling | Entered Scraptown 7067 | -8/Scraptown | Visited IN-MT5's Study 7134 | -8/Scraptown | Visited Shadow of the Wyrm 7168 | -8/Scraptown | Visited CR-KLE's Repair Center 7207 | -8/Scraptown | Visited SPCMW 7243 | -8/Scraptown | Visited Symbiants 7319 | -8/Scraptown | Visited The Evicted 7366 | -8/Scraptown | Visited UFD Registry 7366 | -8/Scraptown | Registered with UFD as "Arcslicer" 7485 | -8/Scraptown | Visited DA-N13 Charitable Foundation 7509 | -8/Scraptown | Found DCF Scrap (30 items) 7590 | -8/Scraptown | Visited Junk Repository 7640 | -8/Scraptown | Visited Modified Component R&D 7703 | -8/Scraptown | Visited Scrapoid Pod Storage 7736 | -8/Scraptown | Visited Supply Room 7762 | -8/Scraptown | Visited Science Guys 7790 | -8/Scraptown | Visited Derelict Rescue Squad 7813 | -8/Scraptown | Visited Chapter 10 7814 | -8/Scraptown | Build established: Derelict-Mutant 7843 | -8/Scraptown | Visited Junk Repository 8310 | -8/Scraptown | Scanned Subdweller tech in exchange for log data 8315 | -8/Scraptown | Learned Research emergency access door positions 8316 | -8/Scraptown | Learned location of 1 exit from Research 8318 | -8/Scraptown | Learned location of Extension (-5) 8333 | -8/Scraptown | Discovered new exit (range 11) 8368 | -8/Scraptown | Guru changed UFD alias to "Monogunner" 8605 | -8/Scraptown | Heard Great Nut preacher, LISTEN AND RECITE! 8910 | -8/Scraptown | Visited Cartography Club 9152 | -8/Scraptown | Build established: Mutant 9204 | -8/Scraptown | Learned location of Lower Caves (-7) 9204 | -8/Scraptown | Learned location of Upper Caves (-4) 9204 | -8/Scraptown | Learned 12 Materials zone layouts 9204 | -8/Scraptown | Learned 16 Factory zone layouts 9204 | -8/Scraptown | Learned 4 Access zone layouts 9204 | -8/Scraptown | Learned 16 Lower Caves zone layouts 9204 | -8/Scraptown | Learned 8 Proximity Caves zone layouts 9204 | -8/Scraptown | Learned 16 Proximity Caves zone layouts 9204 | -8/Scraptown | Learned 20 Proximity Caves zone layouts 9204 | -8/Scraptown | Learned 4 Armory zone layouts 9204 | -8/Scraptown | Learned Factory emergency access door positions 9204 | -8/Scraptown | Learned location of 3 exits from Factory 9204 | -8/Scraptown | Learned location of 2 exits from Research 9204 | -8/Scraptown | Learned location of 3 exits from Proximity Caves 9204 | -8/Scraptown | Identified exit to Factory 9232 | -8/Scraptown | Found Deep Structural Scanner 9551 | -8/Scraptown | Found DRS Beacon 9863 | -8/Scraptown | Found Scrapoid Pod 10419 | -8/Scraptown | Build established: Hauler-Mutant 11609 | -8/Scraptown | Build established: Mutant 11824 | -8/Scraptown | CR-KLE repaired 7 parts 12206 | -8/Scraptown | Build established: Hauler-Mutant 14005 | -8/Scraptown | Found Scrap Suit 14095 | -8/Scraptown | Found Scrap Suit 14492 | -8/Scraptown | Entered Factory 14492 | -6/Factory | Evolved 8 slots: Propulsion x2, Utility x6 14493 | -6/Factory | Identified exit to Factory 14494 | -6/Factory | Identified exit to Lower Caves 14497 | -6/Factory | Loaded intel: 5 fabricator locations 14730 | -6/Factory | Scrapoids reinforcements arrived? 14794 | -6/Factory | Lost 3 allies 14921 | -6/Factory | Entered Lower Caves 14922 | -6/Lower Caves | Identified exit to Lower Caves 14925 | -6/Lower Caves | Encountered a Warlord checkpoint 15047 | -6/Lower Caves | Build established: Scrapper 15146 | -6/Lower Caves | Learned location of 1 exit from Factory 15238 | -6/Lower Caves | Found Alien Artifact 15238 | -6/Lower Caves | Identified Core Expander 15238 | -6/Lower Caves | Installed Core Expander, added new Utility slot 15403 | -6/Lower Caves | A Commander dispatched an escort 15407 | -6/Lower Caves | Learned Factory trap positions 15407 | -6/Lower Caves | Learned Research trap positions 15407 | -6/Lower Caves | Learned Factory emergency access door positions 15407 | -6/Lower Caves | Learned Armory garrison access intel 15452 | -6/Lower Caves | Entered another Lower Caves area 15452 | -6/Lower Caves | Accompanied by 2 allies 15453 | -6/Lower Caves | Commander's escort returned to base 15453 | -6/Lower Caves | Commander's escort returned to base 15529 | -6/Lower Caves | Discovered exit to Factory (range 15) 15550 | -6/Lower Caves | Learned Factory stockpile data 15600 | -6/Lower Caves | Entered Factory 15600 | -5/Factory | Evolved 2 slots: Power x1, Utility x1 15601 | -5/Factory | Identified exit to Upper Caves 15602 | -5/Factory | Identified exit to Factory 15603 | -5/Factory | Loaded intel: 96 trap records 15919 | -5/Factory | Discovered new exit (range 15) 15968 | -5/Factory | Build established: Hacker-Scrapper 16097 | -5/Factory | Entered Extension 16287 | -5/Extension | Build established: Derelict-Scrapper 16289 | -5/Extension | Rescued a captive Derelict 16290 | -5/Extension | Rescued a captive Derelict 16322 | -5/Extension | Scrapoids reinforcements arrived? 16407 | -5/Extension | Scrapoids reinforcements arrived? 16448 | -5/Extension | Spotted B-75 Beast 16473 | -5/Extension | Spotted B-75 Beast 16487 | -5/Extension | Allies destroyed B-75 Beast 16517 | -5/Extension | Found Scrap Suit 16528 | -5/Extension | Lost 11 allies 16599 | -5/Extension | Rescued a captive Derelict 16624 | -5/Extension | Rescued a captive Derelict 16655 | -5/Extension | Rescued a captive Derelict 16667 | -5/Extension | Rescued a captive Derelict 16668 | -5/Extension | Rescued a captive Derelict 16698 | -5/Extension | Rescued a captive Derelict 16699 | -5/Extension | Rescued a captive Derelict 16723 | -5/Extension | Rescued A7 16825 | -5/Extension | Build established: Scavenger-Scrapper 16859 | -5/Extension | Rescued a captive Derelict 16860 | -5/Extension | Rescued a captive Derelict 16907 | -5/Extension | Discovered exit to Factory (range 10) 16908 | -5/Extension | Discovered new exit (range 6) 16975 | -5/Extension | Entered Cetus 16975 | -5/Cetus | Accompanied by 20 allies (A7) 16980 | -5/Cetus | Acquired a Cetus Manufacturing Module code from A7 16991 | -5/Cetus | Spotted Cetus Guard 16991 | -5/Cetus | Spotted Cetus Guard 16996 | -5/Cetus | Spotted Cetus Guard 17002 | -5/Cetus | Spotted Cetus Guard 17018 | -5/Cetus | Allies destroyed Cetus Guard 17019 | -5/Cetus | Allies destroyed Cetus Guard 17021 | -5/Cetus | Allies destroyed Cetus Guard 17022 | -5/Cetus | Allies destroyed Cetus Guard 17050 | -5/Cetus | Lost 7 allies 17127 | -5/Cetus | Started Cetus Manufacturing Module 17134 | -5/Cetus | Escorted A7 to Cetus Mainframe 17152 | -5/Cetus | Manufactured an Enhanced Grunt 17177 | -5/Cetus | Manufactured an Enhanced Grunt 17196 | -5/Cetus | Discovered new exit (range 16) 17202 | -5/Cetus | Manufactured an Enhanced Grunt 17227 | -5/Cetus | Manufactured an Enhanced Grunt 17252 | -5/Cetus | Manufactured an Enhanced Grunt 17423 | -5/Cetus | Scrapoid Pod released 05C20-D (x5) 17450 | -5/Cetus | Build established: Commander-Scrapper 17512 | -5/Cetus | Spotted Cetus Guard 17512 | -5/Cetus | Spotted Cetus Guard 17519 | -5/Cetus | Spotted Cetus Guard 17519 | -5/Cetus | Spotted Cetus Guard 17534 | -5/Cetus | Allies destroyed Cetus Guard 17537 | -5/Cetus | Discovered exit to Factory (range 16) 17568 | -5/Cetus | Met Revision 17 17725 | -5/Cetus | Security sweep announced 17740 | -5/Cetus | Entered Archives 17740 | -5/Archives | Accompanied by 17 allies (A7) 17745 | -5/Archives | Received a hacking code to weaken MAIN.C 17799 | -5/Archives | Lost 5 allies 17807 | -5/Archives | Unable to access archive contents 17807 | -5/Archives | Unable to access archive contents 17813 | -5/Archives | Discovered new exit (range 15) 17863 | -5/Archives | Unable to access archive contents 17879 | -5/Archives | Unable to access archive contents 17885 | -5/Archives | Discovered exit to Factory (range 16) 18035 | -5/Archives | Build established: Scavenger-Mutant 18228 | -5/Archives | Discovered new exit (range 14) 18270 | -5/Archives | Entered Hub_04(d) 18270 | -5/Hub_04(d) | Accompanied by 11 allies 18282 | -5/Hub_04(d) | Discovered exit to Factory (range 15) 18507 | -5/Hub_04(d) | Found Prototype Launcher 18508 | -5/Hub_04(d) | Identified Mni. Smartbomb Launcher 18583 | -5/Hub_04(d) | Lost 3 allies 18774 | -5/Hub_04(d) | Lost 5 allies 18853 | -5/Hub_04(d) | Discovered exit to Factory (range 15) 18866 | -5/Hub_04(d) | Discovered exit to Factory (range 16) 18875 | -5/Hub_04(d) | Entered Factory 18875 | -4/Factory | Evolved 2 slots: Utility x2 18904 | -4/Factory | Attached Gun Armor, gained temporary slots: Weapon x2 19252 | -4/Factory | Build established: Scavenger-Tank 19469 | -4/Factory | Discovered new exit (range 9) 19829 | -4/Factory | Discovered new exit (range 3) 20213 | -4/Factory | Found Quantum Capacitor 20436 | -4/Factory | Scrapoid reinforcements arrived 20473 | -4/Factory | Found Scrap Suit 20518 | -4/Factory | Lost 4 allies 20527 | -4/Factory | Discovered new exit (range 7) 20539 | -4/Factory | Identified exit to Research 20913 | -4/Factory | Identified exit to Upper Caves 20916 | -4/Factory | Entered Upper Caves 21108 | -4/Upper Caves | Learned location of Testing (-3) 21169 | -4/Upper Caves | Attacked by a delusional Derelict stockpiling Unaware 21730 | -4/Upper Caves | Attracted the attention of an 0b10 outpost 21868 | -4/Upper Caves | Discovered new exit (range 10) 21880 | -4/Upper Caves | Identified exit to Upper Caves 22266 | -4/Upper Caves | Attracted the attention of an 0b10 checkpoint 22310 | -4/Upper Caves | Learned Research security intel 22393 | -4/Upper Caves | Spotted B-86 Titan 22449 | -4/Upper Caves | Destroyed B-86 Titan 23118 | -4/Upper Caves | Entered another Upper Caves area 23123 | -4/Upper Caves | Ambushed by wild Derelicts 24125 | -4/Upper Caves | Discovered new exit (range 6) 24136 | -4/Upper Caves | Identified exit to Warlord 25053 | -4/Upper Caves | Lost 4 parts (1p1u2w) 25102 | -4/Upper Caves | Learned location of Quarantine (-2) 25134 | -4/Upper Caves | Learned location of Armory (-3) 25134 | -4/Upper Caves | Learned Armory trap positions 25134 | -4/Upper Caves | Learned Research stockpile data 25134 | -4/Upper Caves | Learned Extension stockpile data 25319 | -4/Upper Caves | Build established: Scavenger-Mutant 25927 | -4/Upper Caves | Entered Warlord 25928 | -4/Warlord | Identified exit to Proximity Caves 26167 | -4/Warlord | System corruption cleaned by Quarantine Array 26293 | -4/Warlord | Warlord's base attacked by MAIN.C 26643 | -4/Warlord | Warlord forces counterattacked 26673 | -4/Warlord | Found Prototype Energy Gun 26678 | -4/Warlord | Found Prototype Energy Gun 26764 | -4/Warlord | Found Prototype Device 26764 | -4/Warlord | Identified Minesniffer Drone Bay 26968 | -4/Warlord | Warlord base infiltrated, sounded retreat 27069 | -4/Warlord | Spotted Executioner 27137 | -4/Warlord | Core integrity fell below 50% 27141 | -4/Warlord | Destroyed Executioner 27170 | -4/Warlord | Lost 9 parts (2p4n2u1w) 27208 | -4/Warlord | Spotted Striker 27231 | -4/Warlord | Core integrity fell below 20% 27235 | -4/Warlord | Destroyed by X-87 Electro with Compact HERF Cannon Last Messages --------------- 27135_ Destroyed Lgt. Antimatter Reactor. 27135_ S-43 Plague destroyed. 27136_ Penetrated by Slug. 27139_ Centrium Medium Armor Plating destroyed. 27141_ Executioner destroyed. 27148_ The unstable cave ceiling collapses. 27183_ ANNOUNCEMENT: MAIN.C reinforcements approaching through caves, arriving soon. 27193_ ANNOUNCEMENT: Detected 2 Grunt squads, 1 Hunter squad, 1 Melee squad. 27201_ Acquired 34 matter. 27209_ Mni. Smartbomb Launcher destroyed. 27210_ Phasing Sabre destroyed. 27210_ Acquired 22 matter. 27214_ Adv. Coolant Injector destroyed. 27216_ Hyp. Mass Driver destroyed. 27222_ Centrium Wheel destroyed. 27223_ Neutrino Core destroyed. 27225_ Adv. Cooling System destroyed. 27229_ Rnf. Deuterium Engine destroyed. Map ----- +----------------------------------------------------+ | | | ?????????????????????????????????????????????????? | | ?????????????????????????????????????????????????? | | ?????????????????????????????????????????????????? | | ?????????????????????????????????????????????????? | | ?????????????????????????????????????????????????? | | ?????????????????????????????????????????????????? | | ?????????????????????????????????????????????????? | | ???????????????????????????#?????????????????????? | | ???????????????????????????# ????????????????????? | | ???????????????????????? ??# ????????????????????? | | ???????????????????????? ??# ???????????????????? | | ???????????????????????? ?? ?????????????????? | | ???????????????????????? ??? ??????????????? | | ?????????????????????### ### # ##????????????? | | ?????????????????????# #????????????? | | ?????????????????????# i ] #????????????? | | ?????????????????????# ] #????????????? | | ?????????????????????# ] #?????????????? | | ???????????????????#?# #?????????????? | | ???????????????????# # g #?????????????? | | ???????????????????# ####g ! ;###?????????????? | | ???????????????????# !%![[ !%[= #???????????????? | | ???????????????????#!*=[=! %![[ ##??????????????? | | ???????????????????#!===%/ !%=! #??????????????? | | ???????????????????#####/@ #!# ![ #??????????????? | | ???????????????????# /gK ##%=*#?#?????????????? | | ????????????#####??# #=% # #?????????????? | | ???????????##"""!??# !=%[ #??#?""???????? | | ???????????#" X !??# # [= % # ?#""#??????? | | ???????????#! ""?# = # #??#""#??????? | | #######????#! X"??# ! =xg # ""#####??? | | #" #????#! "???# /%% # *%=g = " "#### | | " #????## %#???# !*!; * % % = " """"" | | "" #????#"#/#########=! |%= # ]"" """"" | | + #????# =%! !=% = = = g&% =%! | | # #????# !! !=// = %[ ^ | | ########### """"*% ! % & % ^ | | "" %%!! *% =] | | ########## ###### """[! = "" """"" | | ?????????# #????# *=*% % ] * "" """"" | | ?????????# #??? " !*=%= " "" "#### | | ?????????# #??### %==%][ # #######""#####??? | | ?????????# ????#/!*%[% # % #????#""#??????? | | ????##### ??## #%##"### ##= ##????#""#??????? | | ????# # #??# / #?#### #??????""???????? | | ????# # #### +???? #???????????????? | | ????# + / !/ #???+#####???????????????? | | ????# #=#### ] #????????????????????????? | | ##########%#??# ]] #????????????????????????? | +----------------------------------------------------+ Best States ------------- Heat Dissipation 93 Coolant Potential 100 Energy Generation 41 Energy Capacity 580 Matter Stores 300 Matter Capacity 300 Sight Range 16 Robot Scan Range 14 Terrain Scan Density 10 Jamming Range 16 Cloak Strength 2 Armor Coverage 1470 Evasion (%) 50 Melee Accuracy 6 Recoil Reduction 4 Matter Filtering 50 Energy Filtering 30 Offensive Hacking 25 Defensive Hacking 10 Item Schematics ----------------- None Robot Schematics ------------------ None Fabricated ------------ Nothing Alien Tech Used ----------------- Core Expander Achievements -------------- Main Advantage Origins Packrat Project G-00 Revising The Future We Are Legion Challenges ------------ None Game ------ Seed ElectrostormCoolingTrap Manual? 0 Play Time 03:51:15 Cumulative 53.4 hours Start 2024.08.18 @ 11:22:16 End 2024.08.22 @ 02:03:26 Sessions 34 Manual Loads 0 Difficulty Rogue Special Mode None Game No. 43 Rogue 43 Adventurer 0 Explorer 0 Win Type - Total 1 Types 1/0/0/0/0/0/0/0/0 Lore% 45 Gallery% 40 Achievement% 36 Wizard Run 0 Options --------- Layout 1 ASCII 0 Keyboard 1 Movement Vi Keybinds 0 Fullscreen 2 Font 20/SmallcapsGlow Map View 64x42 Zoom Use 0% Tactical HUD 1 Map Filters NONE Filters NONE Steam 1 RUN: 8a3396d9-a9e4-4485-8876-2c272e9a6940